[Event "Titled Tuesday Blitz February 07 Late 2023"]
[White "EREBUNI91"]
[Black "Slavin, Alexey"]
[BlackFideId "24104388"]
[WhiteElo "2759"]
[BlackElo "2364"]
[Result "1/2-1/2"]
[Round "01"]
[TimeControl "180+2"]
[Date "2023.02.07"]
[WhiteClock "0:00:06"]
[BlackClock "0:00:04"]

1. e4 {[%clk 0:02:59]}  c6 {[%clk 0:02:57]} 2. d4 {[%clk 0:02:59]}  d6 {[%clk 0:02:55]} 3. Nc3 {[%clk 0:03:00]}  g6 {[%clk 0:02:55]} 4. Nf3 {[%clk 0:03:01]}  Bg7 {[%clk 0:02:56]} 5. Be3 {[%clk 0:03:01]}  Nd7 {[%clk 0:02:56]} 6. Bc4 {[%clk 0:03:01]}  b5 {[%clk 0:02:55]} 7. Bb3 {[%clk 0:03:00]}  Ngf6 {[%clk 0:02:54]} 8. e5 {[%clk 0:02:56]}  Ng4 {[%clk 0:02:49]} 9. e6 {[%clk 0:02:50]}  fxe6 {[%clk 0:02:44]} 10. Bxe6 {[%clk 0:02:51]}  Nxe3 {[%clk 0:02:43]} 11. fxe3 {[%clk 0:02:50]}  Nf6 {[%clk 0:02:41]} 12. Ng5 {[%clk 0:02:11]}  Qa5 {[%clk 0:01:52]} 13. Bxc8 {[%clk 0:01:05]}  Rxc8 {[%clk 0:01:48]} 14. O-O {[%clk 0:01:05]}  O-O {[%clk 0:01:39]} 15. Ne6 {[%clk 0:01:04]}  Rf7 {[%clk 0:01:33]} 16. Qd3 {[%clk 0:00:52]}  b4 {[%clk 0:01:18]} 17. Ne4 {[%clk 0:00:46]}  Bh6 {[%clk 0:00:48]} 18. Rf3 {[%clk 0:00:36]}  Qd5 {[%clk 0:00:42]} 19. Nxf6+ {[%clk 0:00:29]}  Rxf6 {[%clk 0:00:38]} 20. Nf4 {[%clk 0:00:29]}  Qf5 {[%clk 0:00:33]} 21. e4 {[%clk 0:00:23]}  Qd7 {[%clk 0:00:27]} 22. Raf1 {[%clk 0:00:23]}  Bxf4 {[%clk 0:00:24]} 23. Rxf4 {[%clk 0:00:23]}  Rxf4 {[%clk 0:00:23]} 24. Rxf4 {[%clk 0:00:24]}  d5 {[%clk 0:00:24]} 25. e5 {[%clk 0:00:24]}  Rf8 {[%clk 0:00:22]} 26. Qf3 {[%clk 0:00:23]}  Rxf4 {[%clk 0:00:20]} 27. Qxf4 {[%clk 0:00:24]}  Qf5 {[%clk 0:00:20]} 28. Qxf5 {[%clk 0:00:18]}  gxf5 {[%clk 0:00:19]} 29. Kf2 {[%clk 0:00:18]}  Kf7 {[%clk 0:00:19]} 30. Ke3 {[%clk 0:00:19]}  e6 {[%clk 0:00:18]} 31. Kf4 {[%clk 0:00:17]}  Kg6 {[%clk 0:00:17]} 32. g4 {[%clk 0:00:11]}  fxg4 {[%clk 0:00:15]} 33. Kxg4 {[%clk 0:00:12]}  h6 {[%clk 0:00:13]} 34. c3 {[%clk 0:00:04]}  bxc3 {[%clk 0:00:11]} 35. bxc3 {[%clk 0:00:05]}  a6 {[%clk 0:00:11]} 36. a3 {[%clk 0:00:05]}  a5 {[%clk 0:00:10]} 37. a4 {[%clk 0:00:05]}  Kg7 {[%clk 0:00:09]} 38. Kh5 {[%clk 0:00:05]}  Kh7 {[%clk 0:00:09]} 39. Kh4 {[%clk 0:00:06]}  Kg6 {[%clk 0:00:09]} 40. Kg4 {[%clk 0:00:06]}  Kg7 {[%clk 0:00:06]} 41. Kh5 {[%clk 0:00:06]}  Kh7 {[%clk 0:00:05]} 42. Kh4 {[%clk 0:00:05]}  Kg6 {[%clk 0:00:04]} 43. Kg4 {[%clk 0:00:06]} 1/2-1/2


[Site "https://www.chess.com"]

[Event "Titled Tuesday Blitz February 07 Late 2023"]
[White "Kalajzic, Ivan"]
[Black "Sokolovsky, Yahli"]
[WhiteFideId "14506378"]
[BlackFideId "2820242"]
[WhiteElo "2062"]
[BlackElo "2461"]
[Result "0-1"]
[Round "01"]
[TimeControl "180+2"]
[Date "2023.02.07"]
[WhiteClock "0:00:06"]
[BlackClock "0:00:23"]

1. b3 {[%clk 0:02:55]}  Nf6 {[%clk 0:02:57]} 2. Bb2 {[%clk 0:02:55]}  g6 {[%clk 0:02:58]} 3. Bxf6 {[%clk 0:02:55]}  exf6 {[%clk 0:02:59]} 4. c4 {[%clk 0:02:55]}  d5 {[%clk 0:02:58]} 5. cxd5 {[%clk 0:02:54]}  Qxd5 {[%clk 0:02:59]} 6. Nc3 {[%clk 0:02:54]}  Qa5 {[%clk 0:02:58]} 7. a3 {[%clk 0:02:54]}  Bg7 {[%clk 0:02:46]} 8. g3 {[%clk 0:02:51]}  c6 {[%clk 0:02:32]} 9. b4 {[%clk 0:02:48]}  Qc7 {[%clk 0:02:28]} 10. Rc1 {[%clk 0:02:46]}  O-O {[%clk 0:02:27]} 11. Bg2 {[%clk 0:02:45]}  Be6 {[%clk 0:02:25]} 12. Nf3 {[%clk 0:02:33]}  Qe7 {[%clk 0:02:21]} 13. O-O {[%clk 0:02:29]}  f5 {[%clk 0:02:14]} 14. d4 {[%clk 0:02:25]}  a5 {[%clk 0:02:06]} 15. Rb1 {[%clk 0:02:07]}  axb4 {[%clk 0:02:04]} 16. axb4 {[%clk 0:02:07]}  Rd8 {[%clk 0:02:05]} 17. e3 {[%clk 0:02:07]}  Nd7 {[%clk 0:01:40]} 18. Na4 {[%clk 0:01:54]}  Bd5 {[%clk 0:01:13]} 19. Nc5 {[%clk 0:01:42]}  b6 {[%clk 0:01:13]} 20. Nxd7 {[%clk 0:01:42]}  Qxd7 {[%clk 0:01:14]} 21. Qc1 {[%clk 0:01:31]}  Be4 {[%clk 0:01:06]} 22. Ra1 {[%clk 0:01:28]}  Rxa1 {[%clk 0:00:58]} 23. Qxa1 {[%clk 0:01:29]}  Qd5 {[%clk 0:00:59]} 24. Nh4 {[%clk 0:01:20]}  c5 {[%clk 0:00:57]} 25. Bxe4 {[%clk 0:01:17]}  fxe4 {[%clk 0:00:57]} 26. bxc5 {[%clk 0:01:06]}  bxc5 {[%clk 0:00:57]} 27. Qa5 {[%clk 0:00:51]}  cxd4 {[%clk 0:00:53]} 28. Qxd5 {[%clk 0:00:51]}  Rxd5 {[%clk 0:00:54]} 29. exd4 {[%clk 0:00:50]}  Rxd4 {[%clk 0:00:54]} 30. Ng2 {[%clk 0:00:49]}  Rd2 {[%clk 0:00:54]} 31. Re1 {[%clk 0:00:45]}  f5 {[%clk 0:00:51]} 32. Kf1 {[%clk 0:00:44]}  Bc3 {[%clk 0:00:46]} 33. Ne3 {[%clk 0:00:34]}  Bd4 {[%clk 0:00:45]} 34. Nd1 {[%clk 0:00:21]}  Kf7 {[%clk 0:00:42]} 35. h4 {[%clk 0:00:20]}  Kf6 {[%clk 0:00:42]} 36. Ne3 {[%clk 0:00:19]}  Ke6 {[%clk 0:00:38]} 37. h5 {[%clk 0:00:16]}  gxh5 {[%clk 0:00:33]} 38. Kg2 {[%clk 0:00:16]}  Kf6 {[%clk 0:00:32]} 39. Nd5+ {[%clk 0:00:15]}  Kg5 {[%clk 0:00:32]} 40. Ne3 {[%clk 0:00:14]}  h6 {[%clk 0:00:29]} 41. Kf1 {[%clk 0:00:11]}  Bc5 {[%clk 0:00:29]} 42. Kg2 {[%clk 0:00:11]}  Rd3 {[%clk 0:00:29]} 43. Nc4 {[%clk 0:00:08]}  Rc3 {[%clk 0:00:25]} 44. Ne5 {[%clk 0:00:06]}  Rc2 {[%clk 0:00:24]} 45. Rf1 {[%clk 0:00:06]}  e3 {[%clk 0:00:22]} 46. Nd3 {[%clk 0:00:05]}  Bd4 {[%clk 0:00:18]} 47. Kf3 {[%clk 0:00:05]}  exf2 {[%clk 0:00:16]} 48. Nxf2 {[%clk 0:00:05]}  Rxf2+ {[%clk 0:00:16]} 49. Rxf2 {[%clk 0:00:05]}  Bxf2 {[%clk 0:00:17]} 50. Kxf2 {[%clk 0:00:06]}  h4 {[%clk 0:00:17]} 51. gxh4+ {[%clk 0:00:03]}  Kxh4 {[%clk 0:00:18]} 52. Kf3 {[%clk 0:00:04]}  Kg5 {[%clk 0:00:19]} 53. Kg3 {[%clk 0:00:04]}  f4+ {[%clk 0:00:19]} 54. Kh3 {[%clk 0:00:04]}  h5 {[%clk 0:00:19]} 55. Kg2 {[%clk 0:00:05]}  Kg4 {[%clk 0:00:20]} 56. Kh2 {[%clk 0:00:05]}  f3 {[%clk 0:00:21]} 57. Kg1 {[%clk 0:00:05]}  Kg3 {[%clk 0:00:21]} 58. Kh1 {[%clk 0:00:05]}  Kf4 {[%clk 0:00:22]} 59. Kg1 {[%clk 0:00:06]}  Ke3 {[%clk 0:00:22]} 60. Kf1 {[%clk 0:00:06]}  f2 {[%clk 0:00:23]} 61. Kg2 {[%clk 0:00:06]}  Ke2 {[%clk 0:00:23]} 62. Kh3 {[%clk 0:00:06]}  f1=Q+ {[%clk 0:00:23]} 0-1


[Site "https://www.chess.com"]

[Event "Titled Tuesday Blitz February 07 Late 2023"]
[White "Fiorito, Joaquin"]
[Black "Jarocka, Liwia"]
[WhiteFideId "180173"]
[BlackFideId "21807558"]
[WhiteElo "2405"]
[BlackElo "2225"]
[Result "1-0"]
[Round "01"]
[TimeControl "180+2"]
[Date "2023.02.07"]
[WhiteClock "0:01:01"]
[BlackClock "0:00:09"]

1. d4 {[%clk 0:03:00]}  d6 {[%clk 0:02:58]} 2. e4 {[%clk 0:03:00]}  Nf6 {[%clk 0:02:58]} 3. Nc3 {[%clk 0:03:00]}  g6 {[%clk 0:02:59]} 4. Be3 {[%clk 0:02:59]}  Bg7 {[%clk 0:02:59]} 5. Qd2 {[%clk 0:02:59]}  Nbd7 {[%clk 0:02:58]} 6. Bh6 {[%clk 0:02:59]}  O-O {[%clk 0:02:57]} 7. Bxg7 {[%clk 0:02:57]}  Kxg7 {[%clk 0:02:58]} 8. Nf3 {[%clk 0:02:57]}  c5 {[%clk 0:02:58]} 9. O-O-O {[%clk 0:02:46]}  cxd4 {[%clk 0:02:57]} 10. Nxd4 {[%clk 0:02:47]}  Qa5 {[%clk 0:02:55]} 11. h4 {[%clk 0:02:44]}  h5 {[%clk 0:02:54]} 12. Be2 {[%clk 0:02:43]}  Nc5 {[%clk 0:02:50]} 13. f3 {[%clk 0:02:43]}  b5 {[%clk 0:02:37]} 14. Kb1 {[%clk 0:02:26]}  Rb8 {[%clk 0:02:18]} 15. Nc6 {[%clk 0:02:22]}  Qb6 {[%clk 0:02:02]} 16. Nxb8 {[%clk 0:02:21]}  Qxb8 {[%clk 0:02:02]} 17. g4 {[%clk 0:02:12]}  hxg4 {[%clk 0:01:59]} 18. h5 {[%clk 0:02:11]}  gxf3 {[%clk 0:01:44]} 19. Bxf3 {[%clk 0:02:04]}  b4 {[%clk 0:01:13]} 20. hxg6 {[%clk 0:02:00]}  fxg6 {[%clk 0:01:12]} 21. Nd5 {[%clk 0:01:53]}  Ng8 {[%clk 0:00:50]} 22. Qg2 {[%clk 0:01:37]}  Be6 {[%clk 0:00:44]} 23. Rdg1 {[%clk 0:01:36]}  Qe8 {[%clk 0:00:42]} 24. Bh5 {[%clk 0:01:24]}  Bf7 {[%clk 0:00:23]} 25. Nf4 {[%clk 0:01:07]}  Qa4 {[%clk 0:00:22]} 26. b3 {[%clk 0:01:08]}  Nxb3 {[%clk 0:00:10]} 27. cxb3 {[%clk 0:01:07]}  Bxb3 {[%clk 0:00:11]} 28. axb3 {[%clk 0:01:03]}  Qxb3+ {[%clk 0:00:09]} 29. Qb2+ {[%clk 0:01:03]}  Qxb2+ {[%clk 0:00:08]} 30. Kxb2 {[%clk 0:01:04]}  Rxf4 {[%clk 0:00:09]} 31. Bxg6 {[%clk 0:01:03]}  Rf2+ {[%clk 0:00:08]} 32. Kb3 {[%clk 0:01:03]}  Kf8 {[%clk 0:00:09]} 33. Rh8 {[%clk 0:01:01]}  e5 {[%clk 0:00:09]} 34. Bf5 {[%clk 0:01:01]}  Rf3+ {[%clk 0:00:09]} 35. Kxb4 {[%clk 0:01:01]} 1-0


[Site "https://www.chess.com"]

[Event "Titled Tuesday Blitz February 07 Late 2023"]
[White "Kostiukov, Alexandr"]
[Black "Darini, Pouria"]
[WhiteFideId "14108100"]
[BlackFideId "12502200"]
[WhiteElo "2271"]
[BlackElo "2401"]
[Result "1/2-1/2"]
[Round "01"]
[TimeControl "180+2"]
[Date "2023.02.07"]
[WhiteClock "0:00:22"]
[BlackClock "0:00:03"]

1. g3 {[%clk 0:02:57]}  d5 {[%clk 0:02:57]} 2. Bg2 {[%clk 0:02:56]}  Nf6 {[%clk 0:02:57]} 3. d3 {[%clk 0:02:57]}  c6 {[%clk 0:02:56]} 4. e4 {[%clk 0:02:57]}  dxe4 {[%clk 0:02:56]} 5. dxe4 {[%clk 0:02:57]}  Qxd1+ {[%clk 0:02:56]} 6. Kxd1 {[%clk 0:02:58]}  e5 {[%clk 0:02:53]} 7. f3 {[%clk 0:02:58]}  Be6 {[%clk 0:02:48]} 8. Be3 {[%clk 0:02:58]}  Nfd7 {[%clk 0:02:47]} 9. Nd2 {[%clk 0:02:58]}  Bc5 {[%clk 0:02:48]} 10. Ke2 {[%clk 0:02:58]}  a5 {[%clk 0:02:46]} 11. a4 {[%clk 0:02:56]}  Na6 {[%clk 0:02:46]} 12. c3 {[%clk 0:02:56]}  O-O-O {[%clk 0:02:42]} 13. Bh3 {[%clk 0:02:55]}  Bxh3 {[%clk 0:02:33]} 14. Nxh3 {[%clk 0:02:55]}  f6 {[%clk 0:02:30]} 15. Nc4 {[%clk 0:02:54]}  b6 {[%clk 0:02:18]} 16. Bxc5 {[%clk 0:02:45]}  Ndxc5 {[%clk 0:02:10]} 17. Nxb6+ {[%clk 0:02:44]}  Kc7 {[%clk 0:02:09]} 18. Nc4 {[%clk 0:02:44]}  Nb3 {[%clk 0:02:09]} 19. Rad1 {[%clk 0:02:42]}  Nac5 {[%clk 0:02:09]} 20. Rxd8 {[%clk 0:02:25]}  Rxd8 {[%clk 0:02:10]} 21. Rd1 {[%clk 0:02:25]}  Rb8 {[%clk 0:01:50]} 22. Nf2 {[%clk 0:02:12]}  Nxa4 {[%clk 0:01:50]} 23. Nd3 {[%clk 0:02:09]}  Nb6 {[%clk 0:01:45]} 24. Nxb6 {[%clk 0:02:01]}  Rxb6 {[%clk 0:01:45]} 25. f4 {[%clk 0:02:00]}  exf4 {[%clk 0:01:40]} 26. gxf4 {[%clk 0:01:53]}  a4 {[%clk 0:01:39]} 27. Rg1 {[%clk 0:01:49]}  g6 {[%clk 0:01:38]} 28. f5 {[%clk 0:01:45]}  gxf5 {[%clk 0:01:37]} 29. exf5 {[%clk 0:01:43]}  Kd6 {[%clk 0:01:22]} 30. Rg7 {[%clk 0:01:31]}  Rb5 {[%clk 0:01:04]} 31. Rxh7 {[%clk 0:01:27]}  Rxf5 {[%clk 0:01:05]} 32. Rh4 {[%clk 0:01:26]}  Ra5 {[%clk 0:00:59]} 33. Rf4 {[%clk 0:01:20]}  Ke6 {[%clk 0:00:53]} 34. Kd1 {[%clk 0:01:14]}  Ra8 {[%clk 0:00:20]} 35. Kc2 {[%clk 0:01:07]}  Na1+ {[%clk 0:00:20]} 36. Kb1 {[%clk 0:01:05]}  Nb3 {[%clk 0:00:21]} 37. Ka2 {[%clk 0:00:53]}  Rd8 {[%clk 0:00:13]} 38. Rxa4 {[%clk 0:00:43]}  Rxd3 {[%clk 0:00:11]} 39. Kxb3 {[%clk 0:00:43]}  Rh3 {[%clk 0:00:12]} 40. Rc4 {[%clk 0:00:39]}  Kd5 {[%clk 0:00:12]} 41. Rd4+ {[%clk 0:00:40]}  Ke5 {[%clk 0:00:12]} 42. Rd2 {[%clk 0:00:39]}  f5 {[%clk 0:00:12]} 43. Kc4 {[%clk 0:00:39]}  f4 {[%clk 0:00:11]} 44. Kc5 {[%clk 0:00:39]}  f3 {[%clk 0:00:10]} 45. Kxc6 {[%clk 0:00:39]}  Ke4 {[%clk 0:00:11]} 46. b4 {[%clk 0:00:35]}  Ke3 {[%clk 0:00:11]} 47. Rb2 {[%clk 0:00:35]}  f2 {[%clk 0:00:12]} 48. Rb1 {[%clk 0:00:34]}  Ke2 {[%clk 0:00:05]} 49. c4 {[%clk 0:00:33]}  Rd3 {[%clk 0:00:05]} 50. b5 {[%clk 0:00:21]}  Rd1 {[%clk 0:00:05]} 51. Rb2+ {[%clk 0:00:21]}  Rd2 {[%clk 0:00:06]} 52. Rb1 {[%clk 0:00:21]}  Rd1 {[%clk 0:00:06]} 53. Rb2+ {[%clk 0:00:22]}  Rd2 {[%clk 0:00:04]} 54. Rb1 {[%clk 0:00:22]}  Rd1 {[%clk 0:00:03]} 1/2-1/2


[Site "https://www.chess.com"]

[Event "Titled Tuesday Blitz February 07 Late 2023"]
[White "Hoffmann, Asa"]
[Black "Maksimovic, Bojan"]
[WhiteFideId "2001470"]
[BlackFideId "14408120"]
[WhiteElo "2185"]
[BlackElo "2486"]
[Result "0-1"]
[Round "01"]
[TimeControl "180+2"]
[Date "2023.02.07"]
[WhiteClock "0:00:23"]
[BlackClock "0:00:19"]

1. d4 {[%clk 0:02:53]}  g6 {[%clk 0:02:59]} 2. e4 {[%clk 0:02:49]}  Nf6 {[%clk 0:02:59]} 3. e5 {[%clk 0:02:48]}  Nh5 {[%clk 0:02:59]} 4. Be2 {[%clk 0:02:46]}  d6 {[%clk 0:02:57]} 5. Bxh5 {[%clk 0:02:42]}  gxh5 {[%clk 0:02:58]} 6. Qxh5 {[%clk 0:02:41]}  dxe5 {[%clk 0:02:58]} 7. dxe5 {[%clk 0:02:40]}  Qd5 {[%clk 0:02:58]} 8. Nf3 {[%clk 0:02:31]}  Qe4+ {[%clk 0:02:51]} 9. Be3 {[%clk 0:02:18]}  Qxc2 {[%clk 0:02:51]} 10. Nbd2 {[%clk 0:02:14]}  Qg6 {[%clk 0:02:43]} 11. Qh4 {[%clk 0:02:09]}  Qg4 {[%clk 0:02:39]} 12. Qg3 {[%clk 0:02:04]}  Nc6 {[%clk 0:02:34]} 13. Rc1 {[%clk 0:02:01]}  Bg7 {[%clk 0:02:29]} 14. Nc4 {[%clk 0:01:55]}  h5 {[%clk 0:02:16]} 15. O-O {[%clk 0:01:49]}  h4 {[%clk 0:02:09]} 16. Qf4 {[%clk 0:01:34]}  h3 {[%clk 0:01:33]} 17. g3 {[%clk 0:01:34]}  Bh6 {[%clk 0:01:23]} 18. Qxg4 {[%clk 0:01:33]}  Bxg4 {[%clk 0:01:22]} 19. Nd4 {[%clk 0:01:21]}  Nxd4 {[%clk 0:01:19]} 20. Bxd4 {[%clk 0:01:20]}  Bxc1 {[%clk 0:01:18]} 21. Rxc1 {[%clk 0:01:19]}  O-O-O {[%clk 0:01:04]} 22. Bc5 {[%clk 0:01:14]}  e6 {[%clk 0:00:29]} 23. Ne3 {[%clk 0:01:13]}  Bf3 {[%clk 0:00:30]} 24. Kf1 {[%clk 0:00:55]}  b6 {[%clk 0:00:26]} 25. Bb4 {[%clk 0:00:51]}  Kb7 {[%clk 0:00:26]} 26. Ke1 {[%clk 0:00:49]}  Rd3 {[%clk 0:00:24]} 27. Bc3 {[%clk 0:00:48]}  Rhd8 {[%clk 0:00:24]} 28. a3 {[%clk 0:00:44]}  a5 {[%clk 0:00:24]} 29. b4 {[%clk 0:00:40]}  a4 {[%clk 0:00:23]} 30. b5 {[%clk 0:00:39]}  R8d5 {[%clk 0:00:22]} 31. Bb4 {[%clk 0:00:34]}  Rxb5 {[%clk 0:00:21]} 32. Nc4 {[%clk 0:00:28]}  Rbd5 {[%clk 0:00:20]} 33. Nd2 {[%clk 0:00:27]}  Rxe5+ {[%clk 0:00:19]} 34. Kf1 {[%clk 0:00:26]}  Bg2+ {[%clk 0:00:19]} 35. Kg1 {[%clk 0:00:25]}  Re2 {[%clk 0:00:20]} 36. Rd1 {[%clk 0:00:23]}  c5 {[%clk 0:00:19]} 0-1


[Site "https://www.chess.com"]

[Event "Titled Tuesday Blitz February 07 Late 2023"]
[White "Boyer, Mahel"]
[Black "Lacasa Diaz, Jose Antonio"]
[WhiteFideId "45102422"]
[BlackFideId "2203375"]
[WhiteElo "2489"]
[BlackElo "2359"]
[Result "1-0"]
[Round "01"]
[TimeControl "180+2"]
[Date "2023.02.07"]
[WhiteClock "0:01:15"]
[BlackClock "0:00:17"]

1. e4 {[%clk 0:03:00]}  c5 {[%clk 0:02:59]} 2. Nf3 {[%clk 0:03:00]}  d6 {[%clk 0:02:57]} 3. d4 {[%clk 0:03:00]}  cxd4 {[%clk 0:02:56]} 4. Nxd4 {[%clk 0:03:01]}  Nf6 {[%clk 0:02:57]} 5. Nc3 {[%clk 0:03:01]}  g6 {[%clk 0:02:57]} 6. Be2 {[%clk 0:02:56]}  Bg7 {[%clk 0:02:57]} 7. h4 {[%clk 0:02:55]}  Nc6 {[%clk 0:02:56]} 8. Be3 {[%clk 0:02:51]}  h5 {[%clk 0:02:46]} 9. Qd2 {[%clk 0:02:50]}  Ng4 {[%clk 0:02:40]} 10. Bxg4 {[%clk 0:02:49]}  Bxg4 {[%clk 0:02:41]} 11. f3 {[%clk 0:02:45]}  Be6 {[%clk 0:02:41]} 12. O-O-O {[%clk 0:02:45]}  O-O {[%clk 0:02:31]} 13. g4 {[%clk 0:02:30]}  Nxd4 {[%clk 0:02:20]} 14. Bxd4 {[%clk 0:02:29]}  Bxd4 {[%clk 0:02:20]} 15. Qxd4 {[%clk 0:02:30]}  Qa5 {[%clk 0:02:20]} 16. gxh5 {[%clk 0:02:28]}  Qxh5 {[%clk 0:02:18]} 17. Rdg1 {[%clk 0:02:27]}  Rfc8 {[%clk 0:02:07]} 18. f4 {[%clk 0:02:22]}  Rc4 {[%clk 0:01:31]} 19. Qf2 {[%clk 0:02:20]}  Rxc3 {[%clk 0:01:28]} 20. bxc3 {[%clk 0:02:20]}  Qa5 {[%clk 0:01:23]} 21. Qd4 {[%clk 0:02:18]}  Rc8 {[%clk 0:01:11]} 22. f5 {[%clk 0:01:40]}  Rc4 {[%clk 0:01:00]} 23. Qd2 {[%clk 0:01:22]}  Qxa2 {[%clk 0:00:55]} 24. Qd3 {[%clk 0:01:19]}  Rxe4 {[%clk 0:00:19]} 25. Qxe4 {[%clk 0:01:14]}  Bxf5 {[%clk 0:00:18]} 26. Qxf5 {[%clk 0:01:14]}  Qa1+ {[%clk 0:00:18]} 27. Kd2 {[%clk 0:01:14]}  Qxg1 {[%clk 0:00:17]} 28. Rxg1 {[%clk 0:01:15]} 1-0


[Site "https://www.chess.com"]

[Event "Titled Tuesday Blitz February 07 Late 2023"]
[White "Carrasco Miranda, Andres"]
[Black "Nazari, Arad"]
[WhiteFideId "3405990"]
[BlackFideId "12577324"]
[WhiteElo "2240"]
[BlackElo "2367"]
[Result "0-1"]
[Round "01"]
[TimeControl "180+2"]
[Date "2023.02.07"]
[WhiteClock "0:00:01"]
[BlackClock "0:00:32"]

1. d4 {[%clk 0:02:56]}  Nf6 {[%clk 0:02:58]} 2. c4 {[%clk 0:02:55]}  g6 {[%clk 0:02:58]} 3. g3 {[%clk 0:02:56]}  c6 {[%clk 0:02:57]} 4. Bg2 {[%clk 0:02:54]}  d5 {[%clk 0:02:58]} 5. Qa4 {[%clk 0:02:54]}  Bg7 {[%clk 0:02:54]} 6. cxd5 {[%clk 0:02:53]}  Nxd5 {[%clk 0:02:54]} 7. Nf3 {[%clk 0:02:53]}  O-O {[%clk 0:02:52]} 8. O-O {[%clk 0:02:53]}  Nd7 {[%clk 0:02:52]} 9. Nc3 {[%clk 0:02:50]}  N7b6 {[%clk 0:02:50]} 10. Qc2 {[%clk 0:02:48]}  Nxc3 {[%clk 0:02:48]} 11. bxc3 {[%clk 0:02:47]}  Be6 {[%clk 0:02:48]} 12. Bf4 {[%clk 0:02:37]}  Nd5 {[%clk 0:02:45]} 13. Bd2 {[%clk 0:02:36]}  Nb6 {[%clk 0:02:42]} 14. Bf4 {[%clk 0:02:34]}  Nc4 {[%clk 0:02:38]} 15. Rfd1 {[%clk 0:02:28]}  Qa5 {[%clk 0:02:37]} 16. Nd2 {[%clk 0:02:16]}  Nxd2 {[%clk 0:02:34]} 17. Rxd2 {[%clk 0:02:12]}  Rfd8 {[%clk 0:02:30]} 18. e4 {[%clk 0:01:55]}  Bc4 {[%clk 0:02:13]} 19. h4 {[%clk 0:01:42]}  e5 {[%clk 0:02:12]} 20. Bg5 {[%clk 0:01:35]}  Rd6 {[%clk 0:02:10]} 21. Rad1 {[%clk 0:01:27]}  h6 {[%clk 0:02:00]} 22. Be7 {[%clk 0:01:27]}  Rd7 {[%clk 0:01:55]} 23. Bb4 {[%clk 0:01:26]}  Qc7 {[%clk 0:01:51]} 24. d5 {[%clk 0:01:22]}  Rad8 {[%clk 0:01:39]} 25. Bh3 {[%clk 0:00:52]}  f5 {[%clk 0:01:13]} 26. d6 {[%clk 0:00:50]}  Qb6 {[%clk 0:01:13]} 27. exf5 {[%clk 0:00:49]}  c5 {[%clk 0:01:12]} 28. fxg6 {[%clk 0:00:29]}  cxb4 {[%clk 0:01:01]} 29. cxb4 {[%clk 0:00:27]}  Qc6 {[%clk 0:00:52]} 30. Bxd7 {[%clk 0:00:18]}  Rxd7 {[%clk 0:00:53]} 31. a4 {[%clk 0:00:14]}  a6 {[%clk 0:00:51]} 32. a5 {[%clk 0:00:11]}  Bf6 {[%clk 0:00:49]} 33. h5 {[%clk 0:00:11]}  Kg7 {[%clk 0:00:50]} 34. Qf5 {[%clk 0:00:09]}  Bb3 {[%clk 0:00:44]} 35. Re1 {[%clk 0:00:07]}  Rxd6 {[%clk 0:00:43]} 36. Rxd6 {[%clk 0:00:05]}  Qxd6 {[%clk 0:00:44]} 37. Qc8 {[%clk 0:00:05]}  Bd5 {[%clk 0:00:42]} 38. Rd1 {[%clk 0:00:05]}  Qc6 {[%clk 0:00:40]} 39. Qf5 {[%clk 0:00:02]}  Be6 {[%clk 0:00:36]} 40. Qd3 {[%clk 0:00:01]}  Bg4 {[%clk 0:00:32]} 0-1


[Site "https://www.chess.com"]

[Event "Titled Tuesday Blitz February 07 Late 2023"]
[White "Vlassov, Nikolai"]
[Black "Rego, Pedro Filipe"]
[WhiteFideId "4103360"]
[BlackFideId "1904310"]
[WhiteElo "2283"]
[BlackElo "2312"]
[Result "0-1"]
[Round "01"]
[TimeControl "180+2"]
[Date "2023.02.07"]
[WhiteClock "0:00:04"]
[BlackClock "0:00:04"]

1. e4 {[%clk 0:02:57]}  c5 {[%clk 0:02:59]} 2. c3 {[%clk 0:02:56]}  Nf6 {[%clk 0:02:58]} 3. e5 {[%clk 0:02:56]}  Nd5 {[%clk 0:02:59]} 4. d4 {[%clk 0:02:56]}  cxd4 {[%clk 0:02:58]} 5. cxd4 {[%clk 0:02:55]}  d6 {[%clk 0:02:58]} 6. Bc4 {[%clk 0:02:55]}  Nb6 {[%clk 0:02:58]} 7. Bb3 {[%clk 0:02:55]}  Nc6 {[%clk 0:02:56]} 8. e6 {[%clk 0:02:53]}  fxe6 {[%clk 0:02:50]} 9. Nf3 {[%clk 0:02:52]}  Na5 {[%clk 0:02:37]} 10. Bc2 {[%clk 0:02:45]}  Bd7 {[%clk 0:02:29]} 11. Bxh7 {[%clk 0:02:40]}  Rxh7 {[%clk 0:02:21]} 12. Qd3 {[%clk 0:02:39]}  Qc7 {[%clk 0:02:11]} 13. Qg6+ {[%clk 0:02:17]}  Kd8 {[%clk 0:02:09]} 14. Nc3 {[%clk 0:02:13]}  Rh8 {[%clk 0:01:56]} 15. Ng5 {[%clk 0:02:12]}  Kc8 {[%clk 0:01:52]} 16. h4 {[%clk 0:01:35]}  Kb8 {[%clk 0:01:31]} 17. Qe4 {[%clk 0:00:44]}  Qc6 {[%clk 0:00:51]} 18. Nf7 {[%clk 0:00:25]}  Qxe4+ {[%clk 0:00:26]} 19. Nxe4 {[%clk 0:00:26]}  Rh5 {[%clk 0:00:26]} 20. g4 {[%clk 0:00:24]}  Rd5 {[%clk 0:00:21]} 21. Be3 {[%clk 0:00:24]}  Nac4 {[%clk 0:00:19]} 22. Nfg5 {[%clk 0:00:20]}  a6 {[%clk 0:00:14]} 23. Rh3 {[%clk 0:00:18]}  Ka7 {[%clk 0:00:13]} 24. Rf3 {[%clk 0:00:17]}  e5 {[%clk 0:00:07]} 25. Nh7 {[%clk 0:00:16]}  exd4 {[%clk 0:00:07]} 26. Bc1 {[%clk 0:00:14]}  Bxg4 {[%clk 0:00:07]} 27. Rxf8 {[%clk 0:00:14]}  Rxf8 {[%clk 0:00:08]} 28. Nxf8 {[%clk 0:00:14]}  Re5 {[%clk 0:00:07]} 29. Kf1 {[%clk 0:00:14]}  Rxe4 {[%clk 0:00:07]} 30. b3 {[%clk 0:00:14]}  Ne5 {[%clk 0:00:07]} 31. Nh7 {[%clk 0:00:13]}  Bf3 {[%clk 0:00:07]} 32. Bb2 {[%clk 0:00:12]}  Rxh4 {[%clk 0:00:07]} 33. Ke1 {[%clk 0:00:09]}  Rxh7 {[%clk 0:00:07]} 34. Kd2 {[%clk 0:00:09]}  Rh2 {[%clk 0:00:07]} 35. Bxd4 {[%clk 0:00:09]}  a5 {[%clk 0:00:06]} 36. a4 {[%clk 0:00:09]}  Ka6 {[%clk 0:00:06]} 37. Rg1 {[%clk 0:00:08]}  Rg2 {[%clk 0:00:06]} 38. Re1 {[%clk 0:00:09]}  g5 {[%clk 0:00:06]} 39. Bxe5 {[%clk 0:00:08]}  dxe5 {[%clk 0:00:07]} 40. Rxe5 {[%clk 0:00:08]}  g4 {[%clk 0:00:08]} 41. Rxe7 {[%clk 0:00:08]}  g3 {[%clk 0:00:08]} 42. Ke3 {[%clk 0:00:08]}  Rxf2 {[%clk 0:00:08]} 43. Rg7 {[%clk 0:00:07]}  Bc6 {[%clk 0:00:04]} 44. Rxg3 {[%clk 0:00:07]}  Rb2 {[%clk 0:00:04]} 45. Kd4 {[%clk 0:00:07]}  Bd5 {[%clk 0:00:03]} 46. Kc5 {[%clk 0:00:05]}  Rxb3 {[%clk 0:00:03]} 47. Rg6 {[%clk 0:00:05]}  Rb4 {[%clk 0:00:04]} 48. Rd6 {[%clk 0:00:04]}  Bc6 {[%clk 0:00:04]} 49. Rh6 {[%clk 0:00:02]}  Rc4+ {[%clk 0:00:04]} 50. Kd6 {[%clk 0:00:03]}  Rxa4 {[%clk 0:00:05]} 51. Kc7 {[%clk 0:00:03]}  Rb4 {[%clk 0:00:05]} 52. Kb8 {[%clk 0:00:03]}  a4 {[%clk 0:00:05]} 53. Rh4 {[%clk 0:00:04]}  Rxh4 {[%clk 0:00:04]} 0-1


[Site "https://www.chess.com"]